bitfinex/quotes_ETHUSD_20240928
["timestamp","ask_amount","ask_price","bid_price","bid_amount"]
[1727522779100,0.83338502,2678.1,2678.0,58.33860408]
[1727522779330,1.22563374,2678.1,2678.0,58.33860408]
[1727522779531,0.05,2678.1,2678.0,58.33860408]
[1727522779735,0.83340625,2678.1,2678.0,58.33860408]
[1727522779943,1.22563374,2678.1,2678.0,58.33860408]
[1727522780241,0.05,2678.1,2678.0,58.33860408]
[1727522781137,0.83322363,2678.1,2678.0,58.33860408]
[1727522784312,0.05,2678.1,2678.0,58.33860408]
[1727522784617,0.83322363,2678.1,2678.0,58.33860408]
[1727522786210,0.05,2678.1,2678.0,58.33860408]
[1727522789870,0.05,2678.1,2678.0,61.651513]
[1727522790155,0.05,2678.1,2678.0,62.77399663]
[1727522791219,0.05,2678.1,2678.0,61.651513]
[1727522792352,0.05,2678.1,2678.0,61.65132964]
[1727522792649,0.05,2678.1,2678.0,61.33860408]
[1727522798345,0.05,2678.1,2678.0,60.55040408]
[1727522798521,0.05,2678.1,2678.0,62.11756776]
[1727522798855,0.05,2678.1,2678.0,62.88276776]
[1727522839184,0.05,2678.1,2678.0,64.32716415]
[1727522839971,0.05,2678.1,2678.0,65.11132859]
[1727522840544,0.05,2678.1,2678.0,64.32716415]
[1727522840942,0.05,2678.1,2678.0,65.11132859]
[1727522841194,0.05,2678.1,2678.0,64.79411895]
[1727522841393,0.05,2678.1,2678.0,64.00995451]
[1727522841801,0.05,2678.1,2678.0,64.3230644]
[1727522842578,0.05,2678.1,2678.0,64.00995451]
[1727522842784,0.05,2678.1,2678.0,64.32310288]
[1727522844406,0.05,2678.1,2678.0,64.00995451]
[1727522845506,0.05,2678.1,2678.0,64.79409261]
[1727522845710,0.05,2678.1,2678.0,64.00992817]
[1727522845881,0.05,2678.1,2678.0,62.88276776]
[1727522846086,0.05,2678.1,2678.0,64.00986294]
[1727522850224,0.05,2678.1,2678.0,62.88276776]
[1727522862608,0.05,2678.1,2678.0,61.31560408]
[1727522862833,0.05,2678.1,2678.0,58.30128368]
[1727522869603,0.83322363,2678.1,2678.0,58.30128368]
[1727522871744,0.83322363,2678.1,2678.0,56.73412]
[1727522872060,1.22563374,2678.1,2678.0,56.73412]
[1727522872206,1.22563374,2678.1,2678.0,58.30128368]
[1727522872638,0.05,2678.1,2678.0,58.30128368]
[1727522873006,0.05,2678.1,2678.0,55.30128368]
[1727522873206,1.22563374,2678.1,2678.0,55.30128368]
[1727522873818,0.05,2678.1,2678.0,55.30128368]
[1727522874245,0.83295441,2678.1,2678.0,55.30128368]
[1727522874605,0.83295441,2678.1,2678.0,56.12008368]
[1727522874806,0.05,2678.1,2678.0,56.12008368]
[1727522875239,0.83295441,2678.1,2678.0,56.12008368]
[1727522876525,0.05,2678.1,2678.0,56.12008368]
[1727522877143,0.83295441,2678.1,2678.0,56.12008368]
[1727522877937,0.05,2678.1,2678.0,56.12008368]
[1727522878685,0.05,2678.1,2678.0,55.30128368]
[1727522879611,0.83295441,2678.1,2678.0,55.30128368]
[1727522880944,0.05,2678.1,2678.0,55.30128368]
[1727522885760,0.83295441,2678.1,2678.0,55.30128368]
[1727522886137,0.05,2678.1,2678.0,55.30128368]
[1727522886924,0.83295441,2678.1,2678.0,55.30128368]
[1727522889339,0.83295441,2678.1,2678.0,53.73412]
[1727522889687,0.83295576,2678.1,2678.0,53.73412]
[1727522889961,0.83295998,2678.1,2678.0,53.73412]
[1727522890135,1.22563374,2678.1,2678.0,53.73412]
[1727522890578,0.05,2678.1,2678.0,53.73412]
[1727522890865,0.83294134,2678.1,2678.0,53.73412]
[1727522891074,1.22563374,2678.1,2678.0,53.73412]
[1727522891367,0.05,2678.1,2678.0,53.73412]
[1727522891563,0.83297303,2678.1,2678.0,53.73412]
[1727522891871,0.05,2678.1,2678.0,53.73412]
[1727522893839,1.22563374,2678.1,2678.0,53.73412]
[1727522901944,0.05,2678.1,2678.0,53.73412]
[1727522902764,1.22505605,2678.1,2678.0,53.73412]
[1727522903845,0.05,2678.1,2678.0,53.73412]
[1727522904478,1.22521459,2678.1,2678.0,53.73412]
[1727522907394,0.05,2678.1,2678.0,53.73412]
[1727522910489,1.61741506,2678.1,2678.0,53.73412]
[1727522910793,0.05,2678.1,2678.0,53.73412]
[1727522911493,1.61741506,2678.1,2678.0,53.73412]
[1727522911669,0.05,2678.1,2678.0,53.73412]
[1727522912796,1.61741506,2678.1,2678.0,53.73412]
[1727522921706,1.61806669,2678.1,2678.0,53.73412]
[1727522931447,1.73754186,2678.1,2678.0,53.73412]
[1727522935661,1.61806669,2678.1,2678.0,53.73412]
[1727522936149,1.72956129,2678.1,2678.0,53.73412]
[1727522940444,1.61806669,2678.1,2678.0,53.73412]
[1727522940856,1.22720422,2678.1,2678.0,54.49342]
[1727522941031,0.83478564,2678.1,2678.0,61.62307817]
[1727522941236,0.05,2678.1,2678.0,62.44064467]
[1727522941429,0.05,2678.1,2678.0,63.53815968]
[1727522942532,0.05,2678.1,2678.0,62.75399524]
[1727522942967,0.05,2678.1,2678.0,63.53815968]
[1727522943678,0.05,2678.1,2678.0,62.74093773]
[1727522945247,0.05,2678.1,2678.0,62.74070559]
[1727522945439,0.05,2678.1,2678.0,61.30970408]
[1727522961342,0.05,2678.1,2678.0,62.87686776]
[1727522963998,0.05,2678.1,2678.0,62.11756776]
[1727522974994,0.05,2678.1,2678.0,62.86916776]
[1727522977832,0.05,2678.1,2678.0,64.29917845]
[1727522978318,0.05,2678.1,2678.0,65.08334289]
[1727522978714,0.05,2678.1,2678.0,65.08334148]
[1727522979608,0.05,2678.1,2678.0,64.29917704]
[1727522980531,0.05,2678.1,2678.0,65.08334148]
[1727522982229,0.05,2678.1,2678.0,63.96607306]
[1727522982428,0.05,2678.1,2678.0,64.77095045]
[1727522982648,0.05,2678.1,2678.0,65.08382497]
[1727522983001,0.05,2678.1,2678.0,64.77095045]
[1727522983242,0.05,2678.1,2678.0,65.08382256]
[1727522985546,0.05,2678.1,2678.0,62.73249444]
[1727522985763,0.05,2678.1,2678.0,64.29965812]
[1727522986357,0.05,2678.1,2678.0,62.43043987]
[1727522986540,0.05,2678.1,2678.0,59.73267787]
[1727522986721,0.05,2678.1,2678.0,58.61415579]
[1727522990129,0.05,2678.1,2678.0,59.41977642]
[1727522990752,0.05,2678.1,2678.0,59.73285484]
[1727522990966,0.05,2678.1,2678.0,58.6143621]
[1727522991577,0.05,2678.1,2678.0,62.43064618]
[1727522992270,0.05,2678.1,2678.0,63.54913421]
[1727522992877,0.05,2678.1,2678.0,62.43064618]
[1727522993587,0.05,2678.1,2678.0,60.8634825]
[1727522993748,0.05,2678.1,2678.0,60.55040408]
[1727522994078,0.05,2678.1,2678.0,58.30128368]
[1727523002059,0.05,2678.1,2678.0,53.73412]
[1727523002384,1.22720422,2678.1,2678.0,53.73412]
[1727523002550,1.225048,2678.1,2678.0,53.73412]
[1727523002747,0.05,2678.1,2678.0,53.73412]
[1727523002952,1.22508049,2678.1,2678.0,53.73412]
[1727523003148,1.22479123,2678.1,2678.0,55.30128368]
[1727523003652,1.69998001,2678.1,2678.0,55.30128368]
[1727523003977,1.61806669,2678.1,2678.0,55.30128368]
[1727523004152,2.79256601,2678.1,2678.0,55.30128368]
[1727523004363,1.22449932,2678.1,2678.0,55.30128368]
[1727523004865,1.61806669,2678.1,2678.0,53.73412]
[1727523005064,0.3292566,2678.1,2678.0,53.73412]
[1727523006549,2.2867651,2678.1,2678.0,53.73412]
[1727523006754,2.0075085,2678.1,2678.0,53.73412]
[1727523007279,1.61448421,2678.1,2678.0,53.73412]
[1727523008294,1.61448421,2678.1,2678.0,50.0]
[1727523008494,0.05,2678.1,2678.0,50.0]
[1727523008671,1.81493453,2678.1,2678.0,50.0]
[1727523008856,1.81491027,2678.1,2678.0,50.0]
[1727523009501,1.81491027,2678.1,2678.0,53.73412]
[1727523009700,1.81491027,2678.1,2678.0,50.0]
[1727523011203,0.25075085,2678.1,2678.0,50.0]
[1727523011879,0.25075085,2678.1,2678.0,44.4]
[1727523012227,1.42302856,2678.1,2678.0,44.4]
[1727523012781,1.42302856,2678.1,2678.0,48.13412]
[1727523013082,1.42302856,2678.1,2678.0,44.4]
[1727523014118,1.81491027,2678.1,2678.0,44.4]
[1727523015187,0.25075085,2678.1,2678.0,44.4]
[1727523015920,1.81491027,2678.1,2678.0,44.4]
[1727523016447,0.25075085,2678.1,2678.0,44.4]
[1727523017504,1.53258593,2678.1,2678.0,44.4]
[1727523018500,1.92539277,2678.1,2678.0,44.4]
[1727523019128,0.36123335,2678.1,2678.0,44.4]
[1727523019443,1.92539277,2678.1,2678.0,44.4]
[1727523022507,1.81491027,2678.1,2678.0,44.4]
[1727523023643,1.92133207,2678.1,2678.0,44.4]
[1727523024232,0.35717265,2678.1,2678.0,44.4]
[1727523024757,1.92133207,2678.1,2678.0,44.4]
[1727523025305,0.35717265,2678.1,2678.0,44.4]
[1727523026943,0.25075085,2678.1,2678.0,44.4]
[1727523027303,1.81491027,2678.1,2678.0,44.4]
[1727523030540,1.92123466,2678.1,2678.0,44.4]
[1727523033741,0.35707524,2678.1,2678.0,44.4]
[1727523034932,1.91891599,2678.1,2678.0,44.4]
[1727523035127,1.71816514,2678.1,2678.0,44.4]
[1727523035327,1.32774066,2678.1,2678.0,50.45548368]
[1727523035562,0.15632439,2678.1,2678.0,50.45548368]
[1727523035720,0.8310961,2678.1,2678.0,50.45548368]
[1727523037529,0.05,2678.1,2678.0,50.45548368]
[1727523037735,0.83133227,2678.1,2678.0,50.45548368]
[1727523038537,0.05,2678.1,2678.0,50.45548368]
[1727523039565,1.22141627,2678.1,2678.0,50.45548368]
[1727523044567,0.05,2678.1,2678.0,50.45548368]
[1727523044737,1.61184075,2678.1,2678.0,50.45548368]
[1727523048163,0.05,2678.1,2678.0,50.45548368]
[1727523048673,1.61517425,2678.1,2678.0,50.45548368]
[1727523048874,0.05,2678.1,2678.0,50.45548368]
[1727523049090,0.05,2678.1,2678.0,54.27176776]
[1727523049277,1.61528625,2678.1,2678.0,54.27176776]
[1727523049479,0.05,2678.1,2678.0,54.27176776]
[1727523049985,1.61528625,2678.1,2678.0,54.27176776]
[1727523050297,1.22393723,2678.1,2678.0,54.27176776]
[1727523050595,1.2239428,2678.1,2678.0,54.27176776]
[1727523050795,1.22396217,2678.1,2678.0,54.27176776]
[1727523053777,1.22368391,2678.1,2678.0,54.27176776]
[1727523053975,0.05,2678.1,2678.0,54.27176776]
[1727523054395,1.61528625,2678.1,2678.0,50.45548368]
[1727523054561,0.05,2678.1,2678.0,50.45548368]
[1727523054766,1.61528625,2678.1,2678.0,49.70128368]
[1727523055202,1.61476083,2678.1,2678.0,49.70128368]
[1727523055762,2.00644098,2678.1,2678.0,48.13412]
[1727523056317,2.0059079,2678.1,2678.0,44.4]
[1727523059268,2.0059079,2678.1,2678.0,48.13412]
[1727523060222,2.0059079,2678.1,2678.0,44.4]
[1727523060223,2.44120764,2678.1,2678.0,44.4]
[1727523060517,0.48529974,2678.1,2678.0,44.4]
[1727523060675,2.93476777,2678.1,2678.0,44.4]
[1727523061005,2.49946803,2678.1,2678.0,44.4]
[1727523063494,2.39640854,2678.1,2678.0,44.4]
[1727523063805,2.49944208,2678.1,2678.0,44.4]
[1727523064169,2.49893816,2678.1,2678.0,44.4]
[1727523065008,3.06156245,2678.1,2678.0,44.4]
[1727523066098,0.71565783,2678.1,2678.0,44.4]
[1727523067674,3.06111464,2678.1,2678.0,44.4]
[1727523067881,0.71565783,2678.1,2678.0,44.4]
[1727523068103,3.06102006,2678.1,2678.0,44.4]
[1727523068695,3.06098601,2678.1,2678.0,44.4]
[1727523069723,3.01098601,2678.1,2678.0,44.4]
[1727523073438,3.01070865,2678.1,2678.0,44.4]
[1727523078147,0.66565783,2678.1,2678.0,44.4]
[1727523078340,2.4476196,2678.1,2678.0,44.4]
[1727523081333,4.9976196,2678.1,2678.0,44.4]
[1727523081632,4.22019722,2678.1,2678.0,44.4]
[1727523082610,2.65303354,2678.1,2678.0,44.4]
[1727523085765,2.75303354,2678.1,2678.0,44.4]
[1727523086127,3.87100891,2678.1,2678.0,44.4]
[1727523088073,5.43817259,2678.1,2678.0,44.4]
[1727523091468,9.17216259,2678.1,2678.0,44.4]
[1727523093159,12.40074766,2678.1,2678.0,44.4]
[1727523093376,12.17216259,2678.1,2678.0,44.4]
[1727523095254,15.39856534,2678.1,2678.0,44.4]
[1727523096683,17.00490377,2678.1,2678.0,44.4]
[1727523096875,12.17216259,2678.1,2678.0,44.4]
[1727523097584,10.60499891,2678.1,2678.0,39.30929376]
[1727523097771,15.39886045,2678.1,2678.0,39.30929376]
[1727523097983,13.83169677,2678.1,2678.0,39.30929376]
[1727523098308,7.60499891,2678.1,2678.0,39.30929376]
[1727523098465,6.05310136,2678.1,2678.0,39.30929376]
[1727523098669,2.20303354,2678.1,2678.0,39.30929376]
[1727523099697,2.75303354,2678.1,2678.0,39.30929376]
[1727523101103,5.48587874,2678.1,2678.0,39.30929376]
[1727523103483,9.21986874,2678.1,2678.0,39.30929376]
[1727523105504,9.22173957,2678.1,2678.0,39.30929376]
[1727523106017,5.48774957,2678.1,2678.0,39.30929376]
[1727523106222,2.75303354,2678.1,2678.0,39.30929376]
[1727523109089,5.48785971,2678.1,2678.0,39.30929376]
[1727523110225,2.75303354,2678.1,2678.0,39.30929376]
[1727523113188,6.48702354,2678.1,2678.0,39.30929376]
[1727523126573,9.71824297,2678.1,2678.0,39.30929376]
[1727523127734,6.48702354,2678.1,2678.0,39.30929376]
[1727523134214,13.36470637,2678.1,2678.0,39.30929376]
[1727523134691,9.48702354,2678.1,2678.0,35.84199392]
[1727523135587,13.36521627,2678.1,2678.0,35.84199392]
[1727523135748,9.48702354,2678.1,2678.0,35.84199392]
[1727523145560,9.48702354,2678.1,2678.0,35.59998294]
[1727523151101,13.35905705,2678.1,2678.0,35.59998294]
[1727523151307,13.35904569,2678.1,2678.0,35.59998294]
[1727523152070,9.48702354,2678.1,2678.0,35.59998294]
[1727523152813,13.35895959,2678.1,2678.0,35.59998294]
[1727523157708,9.48702354,2678.1,2678.0,35.32984763]
[1727523158010,13.35949459,2678.1,2678.0,35.32984763]
[1727523158212,11.09336197,2678.1,2678.0,35.32984763]
[1727523158508,9.48702354,2678.1,2678.0,35.32984763]
[1727523167831,9.48702354,2678.1,2678.0,34.53098062]
[1727523173907,25.45109254,2678.1,2678.0,34.53098062]
[1727523174103,24.53287097,2678.1,2678.0,34.53098062]
[1727523175722,21.01797097,2678.1,2678.0,34.53098062]
[1727523175939,18.64213997,2678.1,2678.0,34.53098062]
[1727523176155,14.50487797,2678.1,2678.0,34.53098062]
[1727523176609,11.09336197,2678.1,2678.0,34.53098062]
[1727523176812,9.48702354,2678.1,2678.0,34.53098062]
[1727523182525,10.0727941,2678.1,2678.0,34.53098062]
[1727523192967,10.0727941,2678.1,2678.0,35.33158062]
[1727523199974,12.81992907,2678.1,2678.0,35.33158062]
[1727523200312,2.20303354,2678.1,2678.0,35.33158062]
[1727523200770,5.43822761,2678.1,2678.0,35.33158062]
[1727523201183,5.98822761,2678.1,2678.0,35.33158062]
[1727523201406,2.75303354,2678.1,2678.0,35.33158062]
[1727523201707,5.98822761,2678.1,2678.0,35.33158062]
[1727523202218,2.75303354,2678.1,2678.0,35.33158062]
[1727523204204,6.48702354,2678.1,2678.0,35.33158062]
[1727523205484,2.75303354,2678.1,2678.0,35.33158062]
[1727523205917,2.20303354,2678.1,2678.0,39.06570062]
[1727523206129,0.20303354,2678.1,2678.0,42.8819847]
[1727523206424,2.54728323,2678.1,2678.0,42.8819847]
[1727523206569,0.39041606,2678.3,2678.1,3.73399]
[1727523206772,1.95384536,2678.3,2678.2,5.30101368]
[1727523206993,1.56319922,2678.3,2678.2,5.30101368]
[1727523207220,1.17139783,2678.3,2678.2,9.11729776]
[1727523207415,1.95384536,2678.4,2678.2,5.38344776]
[1727523207618,0.08597214,2678.3,2678.2,9.11729776]
[1727523207906,1.6477487,2678.3,2678.2,9.91789776]
[1727523208077,0.08597214,2678.3,2678.2,9.91789776]
[1727523208286,1.64774262,2678.3,2678.2,9.91789776]
[1727523208912,1.64774262,2678.3,2678.2,8.35073408]
[1727523209351,0.08597214,2678.3,2678.2,8.35073408]
[1727523209471,1.25613178,2678.3,2678.2,8.35073408]
[1727523210174,1.25613178,2678.3,2678.2,9.91789776]
[1727523210175,0.08597214,2678.3,2678.2,9.91789776]
[1727523211227,1.17025064,2678.4,2678.3,4.53431]
[1727523211387,1.17025064,2678.4,2678.3,5.52609978]
[1727523211729,1.25364393,2678.4,2678.3,5.52609978]
[1727523213798,0.08339329,2678.4,2678.3,5.52609978]
[1727523214095,1.25364393,2678.4,2678.3,5.52609978]
[1727523214302,0.08339329,2678.4,2678.3,5.52609978]
[1727523218131,0.08339329,2678.4,2678.3,1.79238978]
[1727523218291,1.25110835,2678.4,2678.3,0.8006]
[1727523218486,0.08339329,2678.4,2678.3,0.8006]
[1727523219229,1.25111467,2678.4,2678.3,0.8006]
[1727523221034,1.64516377,2678.4,2678.3,0.8006]
[1727523221391,0.08339329,2678.4,2678.3,0.8006]
[1727523222793,1.25059268,2678.4,2678.3,0.8006]
[1727523223294,0.08339329,2678.4,2678.3,0.8006]
[1727523223489,1.64516377,2678.4,2678.3,0.8006]
[1727523225920,0.63339329,2678.4,2678.3,0.8006]
[1727523226121,2.18972566,2678.4,2678.3,0.8006]
[1727523226649,0.55,2678.3,2678.0,35.30238062]
[1727523226812,0.55,2678.1,2678.0,35.30238062]
[1727523227012,0.55,2678.1,2678.0,34.53098062]
[1727523227013,4.49548303,2678.1,2678.0,34.53098062]
[1727523227213,5.66504575,2678.1,2678.0,34.53098062]
[1727523229103,6.05359278,2678.1,2678.0,34.53098062]
[1727523231300,4.96756679,2678.1,2678.0,34.53098062]
[1727523231730,4.57901272,2678.1,2678.0,34.53098062]
[1727523231933,3.02208376,2678.1,2678.0,34.53098062]
[1727523232440,4.57926052,2678.1,2678.0,35.30088062]
[1727523233002,4.49572379,2678.1,2678.0,35.30088062]
[1727523233201,4.5788041,2678.1,2678.0,35.30088062]
[1727523234327,4.96808447,2678.1,2678.0,35.30088062]
[1727523234932,4.57931975,2678.1,2678.0,39.03500062]
[1727523235136,3.02162734,2678.1,2678.0,39.03500062]
[1727523235967,4.58005813,2678.1,2678.0,39.03500062]
[1727523236265,4.96808447,2678.1,2678.0,39.03500062]
[1727523236421,3.02162734,2678.1,2678.0,39.03500062]
[1727523236621,4.58051672,2678.1,2678.0,39.03500062]
[1727523236821,3.02162734,2678.1,2678.0,39.03500062]
[1727523237055,3.02162734,2678.1,2678.0,35.30088062]
[1727523237448,3.02162734,2678.1,2678.0,35.82944887]
[1727523238364,4.9705977,2678.1,2678.0,35.30088062]
[1727523239388,4.97107988,2678.1,2678.0,35.30088062]
[1727523239533,3.02162734,2678.1,2678.0,35.30088062]
[1727523239860,4.97086561,2678.1,2678.0,35.30088062]
[1727523240857,4.97101409,2678.1,2678.0,35.30088062]
[1727523241021,4.97101513,2678.1,2678.0,35.30088062]
[1727523241225,4.97146239,2678.1,2678.0,35.30088062]
[1727523241722,3.02162734,2678.1,2678.0,35.30088062]
[1727523245351,5.36362273,2678.1,2678.0,35.30088062]
[1727523246251,5.36362273,2678.1,2678.0,35.29928446]
[1727523248264,3.02162734,2678.1,2678.0,35.29928446]
[1727523256505,3.97039387,2678.1,2678.0,34.52938446]
[1727523257297,6.70272183,2678.1,2678.0,34.52938446]
[1727523259430,1.02162734,2678.1,2678.0,39.03810446]
[1727523259722,0.47162734,2678.1,2678.0,39.03810446]
[1727523260024,0.08308031,2678.1,2678.0,39.03810446]
[1727523260336,2.73608255,2678.3,2678.0,39.03810446]
[1727523260619,0.08265857,2678.1,2678.0,39.03810446]
[1727523260778,3.12460093,2678.3,2678.0,35.30398446]
[1727523260983,3.12460093,2678.3,2678.2,3.73385]
[1727523261185,3.67460093,2678.3,2678.2,4.50845]
[1727523261483,0.93851838,2678.3,2678.2,4.50845]
[1727523261700,0.93851838,2678.3,2678.2,0.7746]
[1727523262308,3.75747469,2678.3,2678.2,0.7746]
[1727523264283,2.0,2678.1,2678.0,34.52938446]
[1727523264515,2.0,2678.1,2678.0,38.26350446]
[1727523264802,2.08293243,2678.1,2678.0,34.52938446]
[1727523266892,5.37082977,2678.1,2678.0,34.52938446]
[1727523267118,6.72120411,2678.1,2678.0,34.52938446]
[1727523268911,6.722476,2678.1,2678.0,34.52938446]
[1727523269112,3.98330677,2678.1,2678.0,34.52938446]
[1727523278862,7.71729677,2678.1,2678.0,34.52938446]
[1727523279488,3.98330677,2678.1,2678.0,34.52938446]
[1727523280362,7.71729677,2678.1,2678.0,34.52938446]
[1727523280576,3.98330677,2678.1,2678.0,34.52938446]
[1727523281476,8.49999677,2678.1,2678.0,34.52938446]
[1727523281675,11.73706749,2678.1,2678.0,34.52938446]
[1727523282763,11.73657228,2678.1,2678.0,34.52938446]
[1727523283346,8.49999677,2678.1,2678.0,34.52938446]
[1727523283544,11.73657228,2678.1,2678.0,34.52938446]
[1727523283765,8.00258228,2678.1,2678.0,34.52938446]
[1727523283977,4.76600677,2678.1,2678.0,34.52938446]
[1727523285886,3.98330677,2678.1,2678.0,34.52938446]
[1727523293885,5.37404515,2678.1,2678.0,39.05820446]
[1727523297204,5.3740225,2678.1,2678.0,39.05820446]
[1727523299280,2.63293243,2678.1,2678.0,39.05820446]
[1727523299662,2.63293243,2678.1,2678.0,35.32408446]
[1727523308176,2.63293243,2678.1,2678.0,34.52938446]
[1727523308407,6.49734376,2678.1,2678.0,34.52938446]
[1727523309684,3.2589199,2678.1,2678.0,34.52938446]
[1727523310285,6.49835543,2678.1,2678.0,34.52938446]
[1727523314896,6.49978241,2678.1,2678.0,34.52938446]
[1727523315088,6.49978241,2678.1,2678.0,35.34408446]
[1727523315300,2.63293243,2678.1,2678.0,35.34408446]
[1727523316598,5.87379494,2678.1,2678.0,34.52938446]
[1727523316899,2.63293243,2678.1,2678.0,34.52938446]
[1727523317097,6.87341327,2678.1,2678.0,34.52938446]
[1727523319536,6.87382337,2678.1,2678.0,34.52938446]
[1727523324437,6.8737729,2678.1,2678.0,34.52938446]
[1727523327640,8.93370444,2678.1,2678.0,34.52938446]
[1727523328405,9.74280444,2678.1,2678.0,34.52938446]
[1727523331933,9.87672978,2678.1,2678.0,34.52938446]
[1727523332613,11.40894437,2678.1,2678.0,34.52938446]
[1727523332815,9.87672978,2678.1,2678.0,34.52938446]
[1727523335964,5.33363978,2678.1,2678.0,34.52938446]
[1727523336664,9.06762978,2678.1,2678.0,34.52938446]
[1727523357178,12.95053531,2678.1,2678.0,34.52938446]
[1727523358382,9.06762978,2678.1,2678.0,34.52938446]
[1727523359379,12.95053531,2678.1,2678.0,34.52938446]
[1727523361284,9.06762978,2678.1,2678.0,34.52938446]
[1727523361495,9.06762978,2678.1,2678.0,31.06212779]
[1727523361496,12.82972978,2678.1,2678.0,31.06212779]
[1727523371871,12.06762978,2678.1,2678.0,31.06212779]
[1727523373871,2.21685777,2678.1,2678.0,31.85662779]
[1727523374247,5.4593837,2678.1,2678.0,31.85662779]
[1727523375272,2.21685777,2678.1,2678.0,31.85662779]
[1727523375482,6.00928311,2678.1,2678.0,31.85662779]
[1727523376234,2.76685777,2678.1,2678.0,31.85662779]
[1727523377736,6.50084777,2678.1,2678.0,31.85662779]
[1727523377942,9.74327311,2678.1,2678.0,31.85662779]
[1727523378336,6.50084777,2678.1,2678.0,31.85662779]
[1727523378531,9.74260684,2678.1,2678.0,31.85662779]
[1727523379933,9.74171119,2678.1,2678.0,31.85662779]
[1727523381775,11.30887487,2678.1,2678.0,31.85662779]
[1727523383761,8.06801145,2678.1,2678.0,31.85662779]
[1727523386767,8.06801145,2678.1,2678.0,31.06212779]
[1727523388153,11.30887118,2678.1,2678.0,31.06212779]
[1727523389680,11.30874023,2678.1,2678.0,31.06212779]
[1727523391548,11.06801145,2678.1,2678.0,31.06212779]
[1727523391754,11.88171145,2678.1,2678.0,31.06212779]
[1727523392149,15.77254038,2678.1,2678.0,31.06212779]
[1727523395188,14.95884038,2678.1,2678.0,31.06212779]
[1727523395353,11.06801145,2678.1,2678.0,31.85162779]
[1727523395949,2.76685777,2678.1,2678.0,31.85162779]
[1727523396152,5.45782651,2678.1,2678.0,31.85162779]
[1727523397437,6.00782651,2678.1,2678.0,31.85162779]
[1727523399194,6.00755541,2678.1,2678.0,31.85162779]
[1727523400395,9.74154541,2678.1,2678.0,31.85162779]
[1727523400925,6.00755541,2678.1,2678.0,31.85162779]
[1727523402016,9.74154541,2678.1,2678.0,31.85162779]
[1727523403919,8.06801145,2678.1,2678.0,31.06212779]
[1727523409837,9.74178433,2678.1,2678.0,31.06212779]
[1727523410173,6.00779433,2678.1,2678.0,31.06212779]
[1727523410388,6.00779433,2678.1,2678.0,31.85162779]
[1727523410879,5.45779433,2678.1,2678.0,31.85162779]
[1727523411179,4.96246362,2678.1,2678.0,35.03679057]
[1727523411525,4.96246362,2678.1,2678.0,31.85162779]
[1727523412371,5.51246362,2678.1,2678.0,31.85162779]
[1727523413358,5.51220268,2678.1,2678.0,31.85162779]
[1727523417105,5.51220268,2678.1,2678.0,35.58574779]
[1727523418007,2.76685777,2678.1,2678.0,35.58574779]
[1727523418215,5.51238779,2678.1,2678.0,35.58574779]
[1727523418890,5.51238779,2678.1,2678.0,38.91095811]
[1727523418891,2.76685777,2678.1,2678.0,38.91095811]
[1727523420568,2.76685777,2678.1,2678.0,31.85162779]
[1727523431531,2.76685777,2678.1,2678.0,35.58574779]
[1727523431696,2.76685777,2678.1,2678.0,31.85162779]
[1727523435133,2.76685777,2678.1,2678.0,35.58574779]
[1727523435336,5.11722649,2678.1,2678.0,35.58574779]
[1727523435634,5.11722649,2678.1,2678.0,39.40203187]
[1727523435635,0.21685777,2678.1,2678.0,39.40203187]
[1727523436008,2.73891798,2678.3,2678.2,3.73385]
[1727523436232,2.73891798,2678.3,2678.2,8.35763408]
[1727523436409,2.91535591,2678.3,2678.2,8.35763408]
[1727523436611,0.17643793,2678.3,2678.2,8.35763408]
[1727523437103,2.3503996,2678.5,2678.4,4.54107]
[1727523437334,2.52707969,2678.5,2678.4,6.94396909]
[1727523437632,0.17668009,2678.5,2678.4,7.01863317]
[1727523437803,2.1350826,2678.5,2678.4,7.01863317]
[1727523437997,1.95840251,2678.5,2678.4,7.01863317]
[1727523438195,1.95840251,2678.6,2678.5,4.54093]
[1727523438535,0.38893738,2678.5,2678.2,3.73383]
[1727523438700,2.34891748,2678.3,2678.2,3.73383]
[1727523438900,3.29041298,2678.4,2678.2,3.73383]
[1727523439116,0.17722325,2678.3,2678.2,3.73383]
[1727523439897,2.17722325,2678.3,2678.0,31.06212779]
[1727523440094,0.55,2678.1,2678.0,31.06212779]
[1727523440421,0.72701385,2678.1,2678.0,31.06212779]
[1727523440793,3.46738716,2678.1,2678.0,31.06212779]
[1727523440997,0.72701385,2678.1,2678.0,31.06212779]
[1727523441226,4.46100385,2678.1,2678.0,31.06212779]
[1727523442412,0.72701385,2678.1,2678.0,31.06212779]
[1727523444495,3.46747711,2678.1,2678.0,31.06212779]
[1727523444697,0.72701385,2678.1,2678.0,31.06212779]
[1727523445194,3.46759431,2678.1,2678.0,31.06212779]
[1727523449099,3.85649246,2678.1,2678.0,31.06212779]
[1727523449565,3.85692728,2678.1,2678.0,31.06212779]
[1727523450493,1.115912,2678.1,2678.0,34.79624779]
[1727523450695,1.115912,2678.1,2678.0,31.86962779]
[1727523450913,0.72701385,2678.1,2678.0,31.86962779]
[1727523453316,0.17701385,2678.1,2678.0,38.51562358]
[1727523453863,1.95880007,2678.1,2678.0,38.51562358]
[1727523454162,2.0,2678.7,2678.5,4.50393]
[1727523454163,4.74236148,2678.7,2678.5,4.50393]
[1727523454587,0.17058743,2678.6,2678.5,4.50393]
[1727523455010,3.46294891,2678.6,2678.5,0.7705]
[1727523455714,3.46294891,2678.6,2678.1,5.38344776]
[1727523455715,2.55,2678.3,2678.2,0.7705]
[1727523455871,5.37045225,2678.6,2678.2,0.7705]
[1727523455872,3.29154451,2678.5,2678.3,3.73363]
[1727523456203,0.15720919,2678.4,2678.3,3.73363]
[1727523456408,0.15720919,2678.4,2678.2,4.50424]
[1727523456583,2.35001389,2678.3,2678.2,4.5789041]
[1727523456908,2.4739833,2678.3,2678.2,4.50424]
[1727523458101,2.4739833,2678.3,2678.2,5.58667198]
[1727523458878,2.47381781,2678.3,2678.2,5.58667198]
[1727523461171,0.12396941,2678.3,2678.2,5.58667198]
[1727523461376,2.47381781,2678.3,2678.2,5.58667198]
[1727523461585,0.12396941,2678.3,2678.2,5.58667198]
[1727523462719,2.47381781,2678.3,2678.2,5.58667198]
[1727523462912,0.12396941,2678.3,2678.2,5.58667198]
[1727523463911,0.15884912,2678.3,2678.2,5.58667198]
[1727523464321,2.5083184,2678.3,2678.2,5.58667198]
[1727523464488,2.5083184,2678.3,2678.2,4.50424]